bitfinex-derivatives/quotes_SOLF0:USTF0_20250924
["timestamp","ask_amount","ask_price","bid_price","bid_amount"]
[1758685381779,4.34,209.4,209.27,7.5]
[1758685382075,4.34,209.36,209.21,7.5]
[1758685382276,4.34,209.36,209.25,7.5]
[1758685382672,4.34,209.42,209.25,7.5]
[1758685383179,4.34,209.38,209.25,7.5]
[1758685384080,4.34,209.35,209.18,7.5]
[1758685384374,4.34,209.32,209.18,7.5]
[1758685385378,4.2986,209.29,209.2,4.3003]
[1758685385973,8.638,209.32,209.22,4.2999]
[1758685386280,4.34,209.38,209.21,66.8917]
[1758685386773,4.34,209.38,209.22,66.8887]
[1758685386972,4.34,209.38,209.24,7.5]
[1758685387575,71.1939,209.33,209.18,7.5]
[1758685388169,4.34,209.3,209.18,7.5]
[1758685389384,4.2992,209.26,209.18,7.5]
[1758685389676,71.2137,209.27,209.13,7.5]
[1758685389977,4.3,209.22,209.13,11.8016]
[1758685390475,4.2995,209.25,209.13,11.8016]
[1758685391683,4.2995,209.25,209.15,4.3013]
[1758685392281,4.2995,209.25,209.13,7.5]
[1758685392478,4.2995,209.25,209.08,66.9329]
[1758685392479,66.8932,209.21,209.07,11.43527423]
[1758685392776,71.2481,209.16,209.07,7.5]
[1758685392982,66.9177,209.13,209.01,7.5]
[1758685393480,4.3025,209.1,209.01,7.5]
[1758685393877,4.3025,209.1,208.97,4.305]
[1758685393878,75.5967,209.08,208.95,11.43527423]
[1758685394180,75.5967,209.08,208.95,7.5]
[1758685394381,71.2937,209.08,208.95,7.5]
[1758685394577,4.36,209.08,208.95,7.5]
[1758685395673,14.06985152,209.13,208.99,7.83]
[1758685395870,4.36,209.14,208.94,7.83]
[1758685395871,4.36,209.09,208.94,7.83]
[1758685396772,4.36,209.06,208.94,7.83]
[1758685396978,66.9468,209.04,208.94,7.83]
[1758685397178,66.9468,209.04,208.89,7.83]
[1758685397677,71.3009,209.06,208.9,66.9912]
[1758685398087,4.36,209.06,208.94,7.83]
[1758685398884,4.36,209.06,208.94,12.1356]
[1758685399181,4.3035,209.05,208.94,7.83]
[1758685400884,4.36,209.06,208.94,7.83]
[1758685401083,71.3004,209.06,208.94,7.83]
[1758685402290,212.3204,209.06,208.94,7.83]
[1758685402884,4.3037,209.04,208.94,7.83]
[1758685405286,4.3041,209.02,208.94,7.83]
[1758685405687,4.3035,209.05,208.94,7.83]
[1758685406594,4.304,209.03,208.94,7.83]
[1758685407594,149.6833,209.06,208.94,7.83]
[1758685407796,104.80445778,209.1,209.0,7.85]
[1758685407797,37.87635778,209.1,209.0,7.85]
[1758685408093,4.36,209.11,209.0,7.85]
[1758685409493,4.3024,209.1,209.0,7.85]
[1758685409685,66.9274,209.1,208.96,12.1552]
[1758685409889,4.36,209.11,208.97,7.85]
[1758685410290,14.54154846,209.13,209.01,7.85]
[1758685410486,140.68,209.15,209.01,7.85]
[1758685410897,4.3021,209.12,209.01,7.85]
[1758685411696,4.3026,209.1,209.01,7.85]
[1758685412398,71.2689,209.16,209.01,7.85]
[1758685412399,14.11343414,209.13,209.01,7.85]
[1758685412596,4.36,209.16,209.01,7.85]
[1758685412800,4.3019,209.13,209.01,7.85]
[1758685412994,66.9181,209.13,209.01,7.85]
[1758685413194,4.36,209.12,209.01,7.85]
[1758685413498,66.9279,209.1,208.94,3.35925753]
[1758685413698,4.36,209.09,208.95,7.85]
[1758685414393,4.3028,209.08,208.96,4.3053]
[1758685414794,4.3033,209.06,208.95,7.85]
[1758685415094,4.36,209.09,208.95,7.85]
[1758685415794,140.54,209.12,208.98,7.85]
[1758685416093,14.69716009,209.13,208.99,66.9618]
[1758685416295,4.36,209.14,209.03,4.3038]
[1758685416500,4.36,209.14,209.04,7.85]
[1758685416895,18.54099454,209.14,209.04,7.85]
[1758685417797,18.54099454,209.14,209.03,4.3038]
[1758685417798,14.18099454,209.14,209.06,7.85]
[1758685417996,4.36,209.21,209.06,7.85]
[1758685418198,0.83258568,209.15,209.06,7.85]
[1758685418504,4.3004,209.2,209.09,4.3026]
[1758685418702,0.83245622,209.17,209.09,4.3026]
[1758685423799,0.83245622,209.17,209.1,7.85]
[1758685424596,14.26068651,209.2,209.1,7.85]
[1758685424802,4.3006,209.19,209.1,7.85]
[1758685424998,0.83240644,209.18,209.1,7.85]
[1758685427710,5.13320644,209.18,209.1,7.85]
[1758685427910,66.9151,209.14,209.04,7.85]
[1758685428207,4.36,209.07,208.97,7.85]
[1758685428810,144.1624,209.1,209.0,4.3044]
[1758685429007,139.86,209.1,208.97,7.85]
[1758685429416,4.36,209.09,208.97,7.85]
[1758685429718,4.3033,209.06,208.97,12.1549]
[1758685430811,4.3033,209.06,208.97,7.85]
[1758685431212,4.3037,209.04,208.97,7.85]
[1758685431411,4.3037,209.04,208.94,4.3055]
[1758685431617,4.36,209.05,208.92,7.85]
[1758685432015,4.3041,209.02,208.92,7.85]
[1758685432216,8.6641,209.02,208.92,7.85]
[1758685432410,8.6641,209.02,208.93,4.3059]
[1758685432921,8.6641,209.02,208.92,7.85]
[1758685433527,274.85,209.01,208.82,5.34155829]
[1758685433731,4.37,208.83,208.67,15.71396082]
[1758685433927,67.0239,208.8,208.67,7.99]
[1758685434231,1.19769447,208.79,208.7,67.0554]
[1758685434433,1.19769447,208.78,208.71,7.99]
[1758685434626,4.37,208.89,208.74,67.0423]
[1758685434828,9.8658,208.94,208.75,7.99]
[1758685435032,117.07753536,208.93,208.75,7.99]
[1758685435229,142.81753536,208.92,208.75,7.99]
[1758685435430,3.19753536,208.91,208.75,7.99]
[1758685435730,139.62,208.9,208.76,7.99]
[1758685436529,71.2889,208.93,208.77,4.3091]
[1758685436729,3.19559887,208.92,208.77,4.3091]
[1758685437031,3.19559887,208.91,208.77,4.3091]
[1758685437232,3.19559887,208.9,208.77,4.3091]
[1758685437433,139.58,208.92,208.77,4.3091]
[1758685437628,3.23190115,208.91,208.77,4.3091]
[1758685437825,81.01529408,208.93,208.77,4.3091]
[1758685438029,3.23188014,208.92,208.76,7.99]
[1758685438229,3.23188014,208.91,208.76,7.99]
[1758685438423,139.54,208.91,208.76,7.99]
[1758685438628,143.8463,208.91,208.76,12.2992]
[1758685439136,5.56,208.9,208.76,7.99]
[1758685439826,5.56,208.9,208.66,428.7867]
[1758685439827,5.56,208.82,208.67,7.99]
[1758685440028,79.82,208.82,208.67,7.99]
[1758685440525,5.56,208.87,208.72,67.049]
[1758685440725,5.56,208.87,208.73,7.99]
[1758685441632,5.56,208.87,208.74,67.0412]
[1758685441830,139.48,208.91,208.77,7.99]
[1758685442131,142.79925753,208.92,208.77,7.99]
[1758685442327,20.06430035,208.93,208.78,4.3089]
[1758685442528,20.06430035,208.93,208.79,7.99]
[1758685442840,67.0047,208.86,208.64,138.4577]
[1758685443034,5.56,208.81,208.65,7.99]
[1758685443938,5.56,208.81,208.68,7.99]
[1758685444148,5.56,208.81,208.68,75.0505]
[1758685444437,72.6058,208.73,208.56,7.99]
[1758685444933,149.2501,208.73,208.56,12.3034]
[1758685445140,76.9163,208.73,208.56,12.3034]
[1758685445437,9.8701,208.73,208.56,12.3034]
[1758685445738,5.56,208.73,208.59,7.99]
[1758685446136,5.56,208.73,208.6,4.3127]
[1758685446340,9.87,208.73,208.59,7.99]
[1758685446542,67.0606,208.69,208.49,67.1221]
[1758685446839,5.56,208.66,208.52,7.99]
[1758685447237,4.3119,208.64,208.52,7.99]
[1758685448137,4.3124,208.62,208.52,7.99]
[1758685448436,9.8724,208.62,208.46,7.99]
[1758685448835,9.8724,208.62,208.46,12.3055]
[1758685449635,19.92,208.59,208.19,7.99]
[1758685449840,67.1168,208.51,208.32,7.99]
[1758685450242,5.56,208.48,208.32,7.99]
[1758685450442,19.92973018,208.48,208.32,7.99]
[1758685452338,5.56,208.54,208.37,67.1612]
[1758685452539,5.56,208.54,208.4,7.99]
[1758685452745,362.12,208.56,208.42,7.99]
[1758685453335,362.12,208.56,208.43,71.4582]
[1758685453336,376.429585,208.56,208.43,71.4582]
[1758685453644,14.309585,208.56,208.43,71.4582]
[1758685453842,38.05775561,208.61,208.48,67.1258]
[1758685454044,38.05775561,208.61,208.48,71.441]
[1758685454835,5.56,208.66,208.48,71.441]
[1758685455346,91.44019982,208.66,208.48,4.3152]
[1758685455540,76.9406,208.66,208.48,4.3152]
[1758685456445,9.8715,208.66,208.48,71.441]
[1758685456940,76.9408,208.66,208.48,4.3152]
[1758685457139,5.59,208.63,208.47,7.99]
[1758685457347,67.082,208.62,208.47,7.99]
[1758685457542,4.3132,208.58,208.43,139.3]
[1758685457742,3.35925753,208.63,208.43,139.3]
[1758685457743,76.02415753,208.64,208.44,7.7]
[1758685458045,76.02415753,208.64,208.48,7.7]
[1758685458246,8.94925753,208.64,208.48,7.7]
[1758685458449,5.59,208.64,208.51,67.116]
[1758685458841,5.59,208.64,208.51,4.3144]
[1758685459741,5.59,208.64,208.51,71.4305]
[1758685460041,14.05326797,208.66,208.54,7.7]
[1758685460248,3.35925753,208.69,208.54,7.7]
[1758685460446,3.35925753,208.69,208.54,74.8037]
[1758685460747,3.35925753,208.69,208.54,7.7]
[1758685461150,20.17954917,208.73,208.58,7.7]
[1758685461345,5.59,208.71,208.58,7.7]
[1758685462647,9.9006,208.71,208.58,7.7]
[1758685465049,5.59,208.71,208.59,67.0894]
[1758685465247,5.59,208.71,208.53,184.4685]
[1758685465248,0.8516166,208.74,208.66,67.0662]
[1758685465443,0.8516166,208.74,208.67,75.0544]
[1758685466250,0.8516166,208.74,208.67,12.3012]
[1758685466451,0.8516166,208.74,208.67,79.3655]
[1758685466651,39.23353312,208.88,208.72,7.99]
[1758685466950,66.9945,208.89,208.72,7.99]
[1758685467553,6.44,208.85,208.72,7.99]
[1758685468155,6.44,208.8,208.67,147.03]
[1758685469152,10.7487,208.8,208.67,7.99]
[1758685470152,67.0,208.88,208.69,67.0582]
[1758685470352,6.44,208.87,208.71,7.99]
[1758685470555,6.44,208.92,208.75,67.0391]
[1758685470854,6.44,208.92,208.76,7.99]
[1758685471157,4.3064,208.91,208.76,12.2993]
[1758685471350,6.44,208.92,208.81,67.0198]
[1758685471556,20.47516484,208.92,208.81,67.0198]
[1758685471744,14.03516484,208.92,208.81,67.0198]
[1758685471948,10.7454,208.96,208.81,67.0198]
[1758685472150,6.44,208.96,208.81,67.0198]
[1758685472356,6.44,208.96,208.8,7.99]
[1758685472545,6.44,208.96,208.82,67.0164]
[1758685472853,6.44,208.96,208.83,67.0118]
[1758685473756,6.44,208.96,208.84,4.3077]
[1758685474352,6.44,208.96,208.84,7.99]
[1758685475051,20.91305608,208.96,208.84,7.99]
[1758685475357,6.44,208.96,208.84,7.99]
[1758685475852,6.44,208.96,208.85,4.3075]
[1758685476446,4.3055,208.95,208.84,7.99]
[1758685477049,6.44,208.96,208.84,12.2977]
[1758685477256,6.44,208.96,208.85,67.0068]
[1758685477556,58.97736101,208.96,208.86,67.0036]
[1758685477856,6.44,208.96,208.86,67.0036]
[1758685478260,6.44,208.96,208.87,4.3071]
[1758685479262,6.44,208.96,208.84,12.2976]
[1758685480963,20.82981527,208.96,208.84,12.2976]
[1758685481362,59.39015791,208.96,208.84,12.2976]
[1758685481562,6.44,208.96,208.84,12.2976]
[1758685481759,6.44,208.96,208.86,4.3073]
[1758685482063,6.44,208.96,208.84,74.9994]
[1758685482064,4.3045,209.0,208.87,7.99]
[1758685482260,6.44,209.01,208.88,4.3069]
[1758685483763,10.7444,209.01,208.88,4.3069]
[1758685484160,4.3044,209.01,208.88,4.3069]
[1758685484357,81.2916,209.09,208.84,67.0094]
[1758685484358,14.24879167,209.05,208.91,7.99]
[1758685484558,6.44,209.06,208.91,7.99]
[1758685484760,4.3037,209.04,208.91,7.99]
[1758685484953,73.3804,209.06,208.84,67.0094]
[1758685484954,6.44,209.02,208.84,67.0094]
[1758685485154,66.9495,209.03,208.85,7.99]
[1758685485155,66.9558,209.01,208.85,7.99]
[1758685485360,4.3049,208.98,208.85,7.99]
[1758685485560,6.44,209.0,208.85,7.99]
[1758685485866,7.25107882,209.04,208.85,7.99]
[1758685486062,6.44,209.03,208.85,7.99]
[1758685486258,66.9526,209.02,208.85,7.99]
[1758685486464,73.3962,209.01,208.85,7.99]
[1758685487067,4.3047,208.99,208.87,4.3071]
[1758685487969,66.9526,209.02,208.85,7.99]
[1758685487970,10.7451,208.97,208.85,7.99]
[1758685488466,4.304,209.03,208.85,7.99]
[1758685488662,6.44,209.02,208.85,7.99]
[1758685489463,4.3043,209.01,208.89,4.3067]
[1758685489669,6.44,209.02,208.88,66.9973]
[1758685490663,10.7441,209.02,208.91,4.3062]
[1758685491063,10.7441,209.02,208.89,7.99]
[1758685491064,6.44,209.0,208.89,7.99]
[1758685491258,66.9635,208.99,208.89,7.99]
[1758685491469,6.44,208.98,208.85,4.3074]
[1758685492566,6.44,208.98,208.84,7.99]
[1758685492567,6.44,208.98,208.87,67.0005]
[1758685492871,6.44,208.98,208.86,7.99]
[1758685493371,6.44,208.98,208.89,4.3067]
[1758685494371,43.87549353,208.98,208.89,4.3067]
[1758685494872,48.18039353,208.98,208.86,12.2972]
[1758685495075,6.42,208.96,208.86,7.99]
[1758685495373,6.42,208.96,208.8,74.5121]
[1758685495775,6.42,208.96,208.81,7.49]
[1758685496874,4.3057,208.94,208.83,4.3079]
[1758685497173,66.975,208.95,208.81,7.49]
[1758685498572,6.42,208.96,208.81,7.49]
[1758685499077,6.42,208.96,208.84,4.3077]
[1758685499078,4.3055,208.95,208.84,4.3077]
[1758685499271,6.42,208.96,208.84,4.3077]
[1758685499473,6.42,208.96,208.85,7.49]
[1758685500779,4.3057,208.94,208.85,7.49]
[1758685500981,6.42,208.93,208.8,7.49]
[1758685502277,4.3066,208.9,208.8,7.49]
[1758685502582,6.42,208.93,208.82,7.49]
[1758685503075,4.3062,208.92,208.82,7.49]
[1758685503876,6.42,208.93,208.84,4.3077]
[1758685504078,6.42,208.93,208.82,7.49]
[1758685504384,3.24861352,208.92,208.82,7.49]
[1758685504583,6.42,208.93,208.82,7.49]
[1758685505179,6.42,208.93,208.85,4.3075]
[1758685505375,137.96,208.97,208.85,4.3075]
[1758685505683,3.25314178,208.96,208.86,7.49]
[1758685505884,3.25314178,208.95,208.86,7.49]
[1758685506079,3.25314178,208.94,208.86,7.49]
[1758685506280,4.3052,208.97,208.86,7.49]
[1758685506479,3.25599623,208.96,208.86,7.49]
[1758685506682,3.25599623,208.95,208.88,7.49]
[1758685506884,137.92,209.01,208.88,7.49]
[1758685507183,3.25631454,209.0,208.89,66.9937]
[1758685507482,42.59115256,209.03,208.9,7.49]
[1758685507782,3.26025301,209.02,208.9,7.49]
[1758685507984,3.26025301,209.01,208.93,4.3059]
[1758685508281,0.81107882,209.04,208.94,7.49]
[1758685508579,0.81107882,209.04,208.91,66.9866]
[1758685508580,0.81107882,209.04,208.97,74.458]
[1758685508777,0.81107882,209.04,208.98,7.49]
[1758685509381,38.15411677,209.11,208.97,66.968]
[1758685509382,4.3015,209.15,209.02,7.49]
[1758685509580,3.22072766,209.14,209.02,7.49]
[1758685509776,3.22072766,209.13,209.02,7.49]
[1758685509984,3.22072766,209.12,209.02,7.49]
[1758685510184,3.22072766,209.11,209.02,7.49]
[1758685510384,3.22072766,209.1,209.02,7.49]
[1758685510584,4.3019,209.13,209.02,7.49]
[1758685510585,18.41617743,209.13,209.02,7.49]
[1758685510780,4.3023,209.11,209.02,7.49]
[1758685511090,73.3524,209.09,208.96,145.35]
[1758685511281,141.00232132,209.08,208.96,145.35]
[1758685511482,4.3033,209.06,208.96,145.35]
[1758685511682,3.22232132,209.05,208.96,7.49]
[1758685511982,3.22232132,209.04,208.96,7.49]
[1758685512183,3.22232132,209.03,208.91,7.49]
[1758685512388,3.22232132,209.02,208.91,7.49]
[1758685512587,6.42,209.04,208.91,7.49]
[1758685512785,3.22223997,209.03,208.91,7.49]
[1758685512985,3.22223997,209.02,208.91,7.49]
[1758685513190,144.14,209.04,208.92,4.3061]
[1758685513383,144.14,209.04,208.93,7.41]
[1758685513384,3.22403647,209.03,208.93,7.41]
[1758685513687,0.81766306,209.06,208.93,7.41]
[1758685513886,6.42,209.1,208.94,7.41]
[1758685514090,3.2244265,209.09,208.94,7.41]
[1758685514386,7.5274265,209.08,208.95,4.3054]
[1758685514582,3.2244265,209.07,208.95,4.3054]
[1758685514984,6.42,209.06,208.94,7.41]
[1758685515183,140.8844265,209.05,208.94,7.41]
[1758685515384,3.2244265,209.04,208.96,4.3052]
[1758685515590,4.3026,209.09,208.97,7.41]
[1758685515791,3.2283899,209.08,208.97,7.41]
[1758685516083,6.42,209.11,208.97,7.41]
[1758685516084,6.42,209.11,208.99,7.41]
[1758685516284,3.22848625,209.1,208.99,7.41]
[1758685516483,6.42,209.11,208.99,7.41]
[1758685516688,3.2282874,209.1,208.99,7.41]
[1758685516888,6.42,209.11,208.99,7.41]
[1758685517089,14.11427743,209.13,209.01,66.9555]
[1758685517284,6.42,209.16,209.02,7.41]
[1758685517484,3.22635664,209.15,209.02,7.41]
[1758685518894,3.22635664,209.15,209.04,7.41]
[1758685519094,17.41240837,209.15,209.04,7.41]
[1758685519293,0.83240644,209.18,209.07,4.3029]
[1758685519490,0.83240644,209.18,208.98,7.41]
[1758685519491,6.42,209.14,208.98,7.41]
[1758685519793,3.22292219,209.13,208.98,7.41]
[1758685520294,7.52482219,209.13,208.99,4.3046]
[1758685520487,6.42,209.14,209.02,66.9524]
[1758685520993,6.42,209.14,209.05,4.3034]
[1758685521286,14.16665582,209.15,209.05,4.3034]
[1758685521493,144.73240644,209.18,209.05,4.3034]
[1758685522293,7.25240644,209.18,209.05,4.3034]
[1758685523088,21.6700912,209.18,209.05,4.3034]
[1758685524589,21.6700912,209.18,209.07,4.303]
[1758685524995,159.0300912,209.18,209.03,7.41]
[1758685525796,159.0300912,209.18,209.04,4.3035]
[1758685525998,6.41,209.13,209.03,7.41]
[1758685526692,6.41,209.1,208.96,7.4]
[1758685527192,4.3027,209.09,208.97,4.305]
[1758685527986,6.41,209.1,208.99,4.3046]
[1758685528188,6.41,209.1,209.0,7.4]
[1758685529500,10.7124,209.1,209.0,7.4]
[1758685529900,6.41,209.1,209.0,7.4]
[1758685531192,4.3026,209.09,209.0,7.4]
[1758685532405,6.41,209.1,209.0,7.4]
[1758685533602,21.6600912,209.18,209.01,66.9529]
[1758685533804,21.6600912,209.18,209.0,66.958]
[1758685533805,25.9608912,209.18,209.05,4.3033]
[1758685534105,21.6600912,209.18,209.03,7.4]
[1758685534910,6.41,209.16,209.03,7.4]
[1758685536011,73.3311,209.12,208.97,7.4]
[1758685536211,137.08,209.11,208.97,7.4]
[1758685536618,137.06,209.1,208.97,7.4]
[1758685536810,4.3029,209.08,208.97,7.4]
[1758685537907,10.7121,209.12,208.97,7.4]
[1758685538518,4.3025,209.1,208.97,7.4]
[1758685539400,4.3025,209.1,208.98,4.3049]
[1758685540321,6.41,209.12,209.01,7.4]
[1758685541820,6.41,209.12,209.02,4.304]
[1758685542118,6.41,209.17,209.03,7.4]
[1758685542316,6.41,209.17,209.04,66.9459]
[1758685542514,6.41,209.17,209.05,7.4]
[1758685542819,15.2500912,209.18,209.1,4.3024]
[1758685543025,6.41,209.22,209.1,7.4]
[1758685543210,14.85188812,209.24,209.13,66.9169]
[1758685543418,14.85188812,209.24,209.16,4.3011]
[1758685543820,14.85188812,209.24,209.14,7.4]
[1758685544216,0.85968568,209.24,209.14,7.4]
[1758685544719,7.26968568,209.24,209.14,7.4]
[1758685545222,7.26968568,209.24,209.14,11.7015]
[1758685546123,6.41,209.24,209.14,11.7015]
[1758685546510,6.41,209.24,209.14,7.4]
[1758685546711,6.41,209.24,209.04,66.9447]
[1758685546712,20.8909035,209.24,209.08,7.4]
[1758685546920,6.41,209.24,209.08,7.4]
[1758685547517,6.41,209.24,209.09,4.3026]
[1758685548323,66.8958,209.2,209.08,7.4]
[1758685548523,6.41,209.19,209.08,7.4]
[1758685549522,4.3008,209.18,209.08,7.4]
[1758685549934,6.41,209.19,209.08,7.4]
[1758685550624,10.7106,209.19,209.08,7.4]
[1758685551525,70.07863535,209.18,209.08,7.4]
[1758685551830,3.17643535,209.17,209.08,7.4]
[1758685552017,4.3014,209.15,209.02,7.4]
[1758685552225,6.41,209.15,209.02,7.4]
[1758685553824,4.3019,209.13,209.02,7.4]
[1758685556931,6.41,209.15,209.03,4.3038]
[1758685557430,6.41,209.15,209.02,11.704]
[1758685557431,4.3016,209.14,209.02,11.704]
[1758685557830,73.3147,209.14,209.02,7.4]
[1758685558732,66.911,209.15,208.93,428.5407]
[1758685558733,6.4,209.09,208.96,7.76]
[1758685559830,4.303,209.08,208.96,7.76]
[1758685560338,6.4,209.09,208.97,4.305]
[1758685560529,0.82689707,209.1,208.98,7.76]
[1758685560835,0.82689707,209.1,208.99,7.76]
[1758685561022,0.82689707,209.1,209.04,7.76]
[1758685561938,0.82689707,209.1,208.97,7.76]
[1758685562434,0.82689707,209.1,208.98,4.3048]
[1758685562938,6.4,209.09,208.97,7.76]
[1758685563636,6.4,209.09,208.97,12.0651]
[1758685565332,4.303,209.07,208.94,4.3055]
[1758685566337,6.4,209.06,208.94,4.3055]
[1758685567441,4.3034,209.05,208.94,4.3055]
[1758685567744,6.4,209.06,208.92,7.76]
[1758685567946,6.4,209.04,208.92,7.76]
[1758685568440,4.3047,208.99,208.92,7.76]
[1758685568644,6.4,208.98,208.86,7.76]
[1758685568948,4.3055,208.95,208.86,7.76]
[1758685569242,66.9954,208.89,208.76,7.76]
[1758685569440,6.4,208.91,208.77,4.3091]
[1758685569644,20.54493092,208.91,208.78,7.76]
[1758685569849,6.4,208.91,208.78,7.76]
[1758685570239,4.3066,208.9,208.78,7.76]
[1758685570543,6.4,208.91,208.78,7.76]
[1758685571540,10.7064,208.91,208.78,7.76]
[1758685572639,4.3068,208.89,208.78,7.76]
[1758685572941,66.9942,208.89,208.78,7.76]
[1758685573147,6.4,208.88,208.78,7.76]
[1758685573345,4.3076,208.85,208.73,7.76]
[1758685574139,10.707,208.88,208.73,12.0699]
[1758685575244,6.4,208.88,208.76,7.63]
[1758685575545,6.4,208.88,208.77,4.3092]
[1758685576346,4.3071,208.87,208.76,7.63]
[1758685576549,67.0007,208.87,208.76,7.63]
[1758685576744,67.0038,208.86,208.76,7.63]
[1758685577349,4.3077,208.85,208.76,7.63]
[1758685577549,130.75509277,208.88,208.76,7.63]
[1758685578047,143.19509277,208.88,208.76,7.63]
[1758685578241,7.23509277,208.88,208.76,7.63]
[1758685578747,0.83509277,208.88,208.8,7.63]
[1758685581749,0.83509277,208.88,208.73,4.3099]
[1758685582053,0.83509277,208.88,208.74,7.63]
[1758685582951,4.3074,208.86,208.74,7.63]
[1758685583162,6.42,208.85,208.74,7.63]
[1758685584250,4.3082,208.82,208.74,7.63]
[1758685584454,67.0146,208.83,208.74,7.63]
[1758685585248,6.42,208.85,208.74,7.63]
[1758685585649,0.83509277,208.88,208.74,7.63]
[1758685586753,4.3075,208.86,208.75,4.3096]
[1758685587149,0.83509277,208.88,208.76,7.35]
[1758685587354,4.3071,208.87,208.76,7.35]
[1758685590160,4.3071,208.87,208.77,4.3092]
[1758685594864,4.3071,208.87,208.76,7.35]
[1758685595457,4.3075,208.85,208.76,7.35]
[1758685595658,0.83509277,208.88,208.69,7.35]
[1758685595659,6.42,208.83,208.69,7.35]
[1758685595858,7.25381254,208.83,208.69,7.35]
[1758685596261,4.3084,208.81,208.71,4.3102]
[1758685596763,4.3084,208.81,208.72,7.35]
[1758685597155,7.25381254,208.83,208.72,7.35]
[1758685597358,7.25381254,208.83,208.73,4.31]
[1758685597866,4.3082,208.82,208.73,4.31]
[1758685598168,4.3082,208.82,208.68,428.7199]
[1758685598169,0.83381254,208.83,208.75,4.3096]
[1758685600061,0.83381254,208.83,208.74,7.35]
[1758685600258,6.42,208.82,208.74,7.35]
[1758685600460,6.42,208.82,208.69,7.35]
[1758685601863,6.42,208.82,208.73,7.35]
[1758685603665,0.83381254,208.83,208.75,4.3096]
[1758685603866,0.83381254,208.83,208.76,7.35]
[1758685605162,0.83381254,208.83,208.77,4.3092]
[1758685605372,7.25509277,208.88,208.78,7.35]
[1758685605566,0.83369268,208.87,208.78,7.35]
[1758685606363,7.25509277,208.88,208.8,4.3084]
[1758685606570,6.42,208.88,208.8,4.3084]
[1758685606761,6.42,208.88,208.78,7.35]
[1758685607665,6.42,208.86,208.74,11.6597]
[1758685607863,6.42,208.86,208.74,7.35]
[1758685608567,73.4337,208.83,208.74,7.35]
[1758685608765,73.4337,208.83,208.7,7.35]
[1758685609872,4.3088,208.79,208.7,7.35]
[1758685610167,73.4337,208.83,208.7,7.35]
[1758685610568,4.3086,208.8,208.7,11.6606]
[1758685614668,4.3086,208.8,208.7,7.35]
[1758685614973,10.7386,208.8,208.7,7.35]
[1758685615169,67.0307,208.78,208.64,7.44]
[1758685615469,6.43,208.75,208.64,7.44]
[1758685615673,10.7402,208.73,208.57,7.44]
[1758685615975,10.7402,208.73,208.62,7.44]
[1758685616275,4.3105,208.71,208.62,7.44]
[1758685616472,6.43,208.73,208.62,7.44]